bitfinex/quotes_ETHUSD_20260126
["timestamp","ask_amount","ask_price","bid_price","bid_amount"]
[1769386860170,0.91610931,2838.3,2837.1,0.03724725]
[1769386860371,0.0352883,2838.2,2837.1,0.03724725]
[1769386861249,12.41491452,2838.6,2837.1,0.03724725]
[1769386861250,0.88074343,2838.6,2837.2,12.17888855]
[1769386861482,12.45020282,2838.5,2837.3,14.37253036]
[1769386861682,0.88070598,2838.7,2837.3,14.33728559]
[1769386861882,12.45020282,2838.6,2837.3,13.4561739]
[1769386862089,12.41491452,2838.6,2837.3,1.27728535]
[1769386862283,12.45020282,2838.5,2837.1,0.88316306]
[1769386862587,12.41491452,2838.5,2837.1,0.002]
[1769386862789,12.41491452,2838.3,2837.1,0.8831748]
[1769386863083,0.738,2838.6,2837.3,13.05999435]
[1769386863385,1.31529145,2838.5,2837.3,13.05999435]
[1769386863589,3.52258906,2838.9,2837.3,13.05999435]
[1769386863590,12.72205116,2839.4,2837.5,12.35957603]
[1769386863789,12.72205116,2839.4,2837.6,0.03524104]
[1769386863790,11.84155245,2839.2,2837.6,0.03524104]
[1769386863988,11.84155245,2839.2,2837.1,0.55871769]
[1769386863989,11.84155245,2838.8,2837.1,0.002]
[1769386864194,11.84155245,2838.6,2837.1,0.002]
[1769386864491,11.84155245,2838.4,2837.0,0.01087725]
[1769386864784,11.88559289,2838.3,2837.0,0.01087725]
[1769386865090,11.84155245,2838.3,2837.0,0.01087725]
[1769386865659,0.88083996,2838.2,2837.0,0.01087725]
[1769386866006,11.885596,2838.1,2836.9,0.74]
[1769386866165,13.11819605,2838.0,2836.9,0.002]
[1769386866489,11.8855991,2837.9,2836.9,0.002]
[1769386866687,11.84155245,2837.9,2836.9,0.002]
[1769386866886,0.0440482,2837.8,2837.1,0.002]
[1769386867091,11.84155245,2837.9,2837.1,0.002]
[1769386867292,12.72339241,2838.2,2837.1,0.002]
[1769386867489,1.62466712,2838.1,2837.1,0.002]
[1769386867688,1.62466712,2838.1,2837.1,0.01557148]
[1769386867887,2.50554664,2838.1,2837.1,0.002]
[1769386868191,2.54959019,2838.1,2837.1,0.002]
[1769386868974,2.50554664,2838.1,2837.1,0.002]
[1769386869174,1.50860991,2838.0,2837.1,0.002]
[1769386869593,0.04404665,2837.9,2837.1,0.002]
[1769386869897,0.92500385,2837.9,2837.1,0.002]
[1769386870391,12.7665563,2837.9,2837.1,0.002]
[1769386870585,12.72250965,2837.9,2837.1,0.002]
[1769386870791,1.8195221,2837.8,2837.1,0.002]
[1769386871985,1.8195221,2837.8,2836.5,0.89895366]
[1769386871986,12.72254762,2837.7,2836.5,0.002]
[1769386872265,12.72254762,2837.7,2836.3,0.002]
[1769386872699,11.84155245,2837.5,2836.3,0.002]
[1769386872964,0.88099517,2837.7,2836.3,0.002]
[1769386872965,11.84155245,2837.3,2836.3,0.002]
[1769386873169,0.738,2837.2,2836.3,0.002]
[1769386873365,1.25795525,2837.1,2836.3,0.002]
[1769386873976,13.98070999,2837.1,2836.3,0.002]
[1769386874167,13.0995077,2837.1,2836.3,0.002]
[1769386874368,15.36531465,2837.9,2836.3,0.002]
[1769386874591,1.66301232,2837.8,2836.3,0.01806824]
[1769386874788,1.61896412,2837.8,2836.3,0.01806824]
[1769386874990,1.61896412,2837.8,2836.3,12.37764427]
[1769386875165,0.04404975,2837.7,2836.3,12.36157603]
[1769386875377,0.04404975,2837.7,2836.4,1.2361576]
[1769386876197,0.88102621,2837.6,2836.4,1.2361576]
[1769386876368,0.04405286,2837.5,2836.4,1.2361576]
[1769386876566,0.128,2837.9,2836.4,13.01918654]
[1769386876890,1.0529939,2837.9,2836.4,13.01918654]
[1769386878379,13.02426763,2837.9,2836.4,12.13780568]
[1769386878584,13.02426763,2837.9,2836.3,0.002]
[1769386878585,13.62606342,2837.8,2836.3,0.002]
[1769386878769,0.04404975,2837.7,2836.3,0.002]
[1769386878972,12.01532348,2837.7,2836.3,0.002]
[1769386879279,0.04405131,2837.6,2836.5,0.002]
[1769386879800,12.01532504,2837.6,2836.5,0.002]
[1769386880009,11.97127373,2837.4,2836.5,0.002]
[1769386880213,0.04405596,2837.3,2836.5,0.002]
[1769386880597,0.88115043,2837.2,2836.5,0.002]
[1769386880908,0.04405596,2837.3,2836.5,0.002]
[1769386881104,1.2015325,2837.5,2836.5,0.002]
[1769386881399,1.9395325,2837.5,2836.5,13.35398625]
[1769386881608,1.61906059,2837.5,2836.5,1.21618057]
[1769386881798,1.61906059,2837.5,2836.5,0.002]
[1769386883102,1.66311345,2837.5,2836.5,0.002]
[1769386883590,13.63438718,2837.5,2836.5,0.002]
[1769386883790,13.59033432,2837.5,2836.5,0.002]
[1769386883987,13.59033432,2837.5,2836.3,0.002]
[1769386884186,1.67398015,2837.4,2836.3,0.002]
[1769386884392,0.04405596,2837.3,2836.3,0.002]
[1769386884588,1.67398015,2837.4,2836.3,0.002]
[1769386884807,0.88099517,2837.7,2836.4,13.01920463]
[1769386885200,0.88099517,2837.7,2836.4,12.13780568]
[1769386885201,0.04405131,2837.6,2836.4,12.13780568]
[1769386886207,12.01532504,2837.6,2836.3,0.002]
[1769386886395,12.01532504,2837.6,2836.3,12.13980568]
[1769386886396,0.738,2837.6,2836.3,12.13980568]
[1769386886716,13.59032569,2837.6,2836.3,13.02122779]
[1769386886903,1.35903257,2837.5,2836.3,0.002]
[1769386887089,0.88101542,2837.7,2836.3,13.02123149]
[1769386887412,12.01532504,2837.6,2836.3,13.02123438]
[1769386887598,0.88101542,2837.7,2836.3,13.02123438]
[1769386887799,0.04405131,2837.6,2836.3,12.13980568]
[1769386888188,12.01532504,2837.6,2836.3,12.13980568]
[1769386888390,13.26090778,2837.5,2836.3,0.002]
[1769386888613,11.97127373,2837.3,2836.3,0.002]
[1769386888790,0.88118148,2837.1,2836.3,0.002]
[1769386889190,12.85245521,2837.1,2836.3,0.002]
[1769386889387,0.88117439,2837.2,2836.3,0.002]
[1769386889683,0.61913007,2837.3,2836.3,0.002]
[1769386889893,1.65554459,2837.2,2836.3,0.002]
[1769386891010,2.49265348,2837.2,2836.5,0.002]
[1769386891215,12.0153328,2837.1,2835.7,0.002]
[1769386891510,0.88116641,2837.2,2835.7,0.00951542]
[1769386891511,12.01533435,2837.0,2835.7,0.00951542]
[1769386891712,11.97127373,2837.0,2835.7,0.002]
[1769386891885,11.97127373,2836.8,2835.7,0.002]
[1769386892303,11.97127373,2836.6,2835.7,0.002]
[1769386893091,12.85264161,2836.5,2835.7,0.002]
[1769386894194,12.11252108,2836.3,2835.1,0.002]
[1769386894820,0.738,2836.2,2835.1,0.002]
[1769386895025,0.88149218,2836.1,2835.1,0.002]
[1769386895594,0.88147522,2836.2,2835.1,0.002]
[1769386895823,0.738,2836.1,2835.1,0.002]
[1769386896317,2.46377283,2836.1,2835.1,0.002]
[1769386897021,0.738,2836.1,2835.1,0.002]
[1769386897234,3.65318474,2836.8,2835.1,11.78690951]
[1769386897235,1.00929396,2836.8,2835.1,11.78690951]
[1769386897542,0.88118148,2837.1,2835.1,11.78690951]
[1769386897705,1.29937026,2837.0,2835.3,11.78490951]
[1769386898036,12.99368748,2837.2,2835.3,11.78490951]
[1769386898331,0.17205907,2837.1,2835.3,11.78490951]
[1769386898632,12.28458015,2837.1,2835.3,11.78490951]
[1769386898927,12.24052108,2837.1,2835.3,11.78490951]
[1769386899087,12.99376469,2836.9,2835.4,2.17806986]
[1769386899291,0.04406373,2836.8,2835.5,11.78490951]
[1769386899492,0.04406373,2836.8,2835.4,1.29636005]
[1769386899493,12.11252108,2836.6,2835.4,1.29636005]
[1769386899708,12.15658947,2836.5,2835.1,11.78690951]
[1769386899898,12.11252108,2836.5,2835.1,11.78690951]
[1769386900695,12.11252108,2836.5,2835.2,0.88177022]
[1769386900923,0.128,2837.1,2835.3,0.88173214]
[1769386901091,0.128,2837.1,2835.3,12.66664165]
[1769386901092,0.88124361,2836.9,2835.3,12.66664165]
[1769386901293,0.88124361,2836.9,2835.5,11.78490951]
[1769386901495,0.128,2837.2,2835.5,11.78490951]
[1769386901710,0.04405752,2837.2,2835.5,11.78490951]
[1769386901921,0.001,2837.4,2835.5,11.78490951]
[1769386902097,0.92614785,2837.4,2835.7,11.78490951]
[1769386902292,0.001,2837.4,2835.7,11.78490951]
[1769386902514,0.04505441,2837.4,2835.7,11.78490951]
[1769386902824,0.92614859,2837.4,2835.7,11.78490951]
[1769386903396,0.92614859,2837.4,2835.8,12.66649495]
[1769386903595,0.001,2836.7,2835.9,1.61929202]
[1769386904726,0.001,2836.7,2835.9,13.40420153]
[1769386905827,0.04405596,2837.3,2836.0,12.66643278]
[1769386906138,0.001,2837.4,2836.2,11.78490951]
[1769386906341,0.001,2837.4,2836.4,11.78490951]
[1769386907130,0.001,2837.4,2836.3,13.03720046]
[1769386907516,0.88209978,2837.4,2836.3,13.03720046]
[1769386907696,0.88209978,2837.4,2836.1,0.738]
[1769386907697,0.88115043,2837.2,2836.1,0.738]
[1769386907895,13.03772903,2837.2,2836.1,0.738]
[1769386908136,0.04405907,2837.1,2836.1,0.738]
[1769386908720,12.15658015,2837.1,2836.1,0.738]
[1769386908905,0.04406062,2837.0,2835.6,12.66653777]
[1769386909106,1.34783383,2837.0,2835.7,2.22206627]
[1769386909307,1.34783383,2837.0,2835.6,11.78490951]
[1769386909506,14.19835491,2837.0,2835.5,0.738]
[1769386909807,0.88124361,2836.9,2835.5,0.738]
[1769386910002,12.15658481,2836.8,2835.5,0.738]
[1769386910254,12.11252108,2836.6,2835.5,0.738]
[1769386910397,13.37224811,2836.5,2835.3,0.002]
[1769386910603,13.32817972,2836.5,2835.3,0.002]
[1769386911016,1.21565864,2836.5,2835.3,11.78690951]
[1769386911215,0.04406373,2836.8,2835.3,11.78690951]
[1769386911636,12.15658481,2836.8,2835.3,11.78690951]
[1769386911838,0.88130574,2836.7,2835.3,11.78690951]
[1769386912058,12.99380975,2836.8,2835.3,12.66864567]
[1769386912654,0.88128867,2836.8,2835.3,12.66864567]
[1769386912864,0.79549297,2836.7,2835.4,1.26686457]
[1769386913033,12.90801405,2836.7,2835.4,1.26686457]
[1769386913356,12.86394877,2836.7,2835.3,0.002]
[1769386913564,12.11252108,2836.5,2835.3,0.002]
[1769386913961,0.88139895,2836.4,2835.3,0.002]
[1769386914671,0.88133681,2836.6,2835.4,11.78490951]
[1769386914880,0.92540365,2836.6,2835.5,1.17942576]
[1769386915457,13.03792473,2836.6,2835.5,1.17942576]
[1769386915629,12.99385789,2836.6,2835.3,0.002]
[1769386915957,0.04406839,2836.5,2835.3,0.002]
[1769386916158,3.25125701,2836.9,2835.3,11.78690951]
[1769386916657,3.29531919,2836.9,2835.6,11.78490951]
[1769386916965,14.00580255,2836.8,2835.5,0.002]
[1769386917268,12.11252108,2836.6,2835.5,0.002]
[1769386917435,0.04406839,2836.5,2835.5,0.002]
[1769386919025,0.88139895,2836.4,2835.5,0.002]
[1769386919226,1.30379884,2836.3,2835.5,0.002]
[1769386919664,13.46039142,2836.3,2835.5,0.002]
[1769386919833,13.41631992,2836.3,2835.5,0.002]
[1769386920345,1.30379884,2836.3,2835.5,0.002]
[1769386920541,1.61939895,2836.4,2835.5,0.002]
[1769386920759,0.738,2836.5,2835.5,0.002]
[1769386920945,0.92546889,2836.4,2835.5,0.002]
[1769386921771,0.04406994,2836.4,2835.5,0.002]
[1769386921976,0.738,2836.6,2835.5,0.002]
[1769386922267,1.89328147,2836.8,2835.5,11.78690951]
[1769386922576,0.88118171,2837.1,2835.5,11.78690951]
[1769386922777,0.88118171,2837.1,2835.7,11.78490951]
[1769386922957,0.04405752,2837.2,2835.9,11.78490951]
[1769386923141,0.04405596,2837.3,2836.1,11.78490951]
[1769386923349,0.35694175,2837.2,2836.1,12.96536153]
[1769386923578,0.04505441,2837.4,2836.1,12.96536153]
[1769386924672,0.001,2837.4,2836.1,12.96536153]
[1769386925048,0.001,2837.4,2836.3,12.66120073]
[1769386925659,0.001,2837.4,2836.5,12.66120073]
[1769386925858,10.24,2838.5,2836.5,12.66120073]
[1769386926075,1.06803889,2838.4,2836.7,12.66120073]
[1769386926395,0.04403889,2838.4,2836.7,12.66120073]
[1769386926884,0.738,2838.9,2836.7,12.66120073]
[1769386927087,0.738,2838.9,2837.0,0.88121254]
[1769386927316,0.92464627,2839.0,2837.1,12.66120073]
[1769386927593,0.88048074,2839.4,2837.3,12.66120073]
[1769386928456,0.92450412,2839.4,2837.3,12.66120073]
[1769386928856,0.88048074,2839.4,2837.4,0.2335703]
[1769386929185,0.04402493,2839.3,2837.5,12.66120073]
[1769386929359,0.88052972,2839.2,2837.7,13.5421959]
[1769386930178,0.92453396,2839.3,2837.7,13.5421959]
[1769386930690,13.68841179,2839.3,2837.7,12.66120073]
[1769386930858,13.64438686,2839.3,2837.3,14.28029907]
[1769386931062,12.76387783,2839.1,2837.4,0.88108673]
[1769386931263,12.80790741,2839.0,2837.4,0.88108673]
[1769386931465,0.88062277,2838.9,2837.4,0.88108673]
[1769386931794,0.88062277,2838.9,2837.3,15.31512671]
[1769386931795,0.04403268,2838.8,2837.3,16.19622637]
[1769386932994,12.76387783,2838.7,2837.3,1.91592598]
[1769386933195,0.04403579,2838.6,2837.3,0.01956672]
[1769386933397,0.88074687,2838.5,2837.3,0.01956672]
[1769386933763,0.04403889,2838.4,2837.3,0.01956672]
[1769386934177,0.88074687,2838.5,2837.2,0.9007159]
[1769386934376,0.44476468,2838.4,2837.2,0.53592615]
[1769386934578,0.04404044,2838.3,2837.2,0.53592615]
[1769386934772,12.80791827,2838.3,2837.0,0.75757224]
[1769386934974,12.76387783,2838.3,2837.0,0.75757224]
[1769386935693,0.88083996,2838.2,2837.0,0.738]
[1769386936093,0.04404355,2838.1,2837.0,0.738]
[1769386936302,11.89566638,2838.1,2837.0,0.738]
[1769386936472,1.27765063,2838.0,2837.0,0.738]
[1769386936679,0.04404665,2837.9,2837.0,0.738]
[1769386937087,1.27765063,2838.0,2837.0,0.738]
[1769386937302,0.88083996,2838.2,2837.0,0.738]
[1769386937506,0.88083996,2838.2,2837.1,0.01957776]
[1769386937708,0.04404355,2838.1,2837.0,0.75757776]
[1769386938210,0.04404355,2838.1,2837.0,0.738]
[1769386939812,12.73252487,2838.0,2837.0,0.738]
[1769386940017,1.63001691,2837.9,2837.0,0.738]
[1769386940713,0.001,2837.7,2837.0,0.738]
[1769386941902,0.001,2837.7,2837.1,12.23541815]
[1769386942121,0.001,2837.7,2837.1,12.21583228]
[1769386942320,15.37476226,2838.4,2837.1,12.21583228]
[1769386942321,0.8807956,2838.4,2837.1,12.21583228]
[1769386942624,0.44037763,2838.4,2837.3,12.21583228]
[1769386942817,0.04403889,2838.4,2837.3,12.21583228]
[1769386943432,11.89566172,2838.4,2837.2,1.38350413]
[1769386943608,11.85162283,2838.4,2837.2,1.38350413]
[1769386943808,0.04404044,2838.3,2837.2,1.38350413]
[1769386944303,0.04404044,2838.3,2837.2,13.59933641]
[1769386944503,0.9248177,2838.4,2837.3,13.57772321]
[1769386944727,0.88077881,2838.4,2837.3,13.57772321]
[1769386944905,0.9248177,2838.4,2837.3,13.57772321]
[1769386945102,0.9248177,2838.4,2837.3,1.36189093]
[1769386945330,12.77643088,2838.5,2837.1,12.235404]
[1769386945500,3.65057811,2838.9,2837.1,12.235404]
[1769386945501,3.52275832,2838.7,2837.2,13.09698268]
[1769386945703,11.85162283,2839.1,2837.3,12.23540021]
[1769386946025,0.88059175,2839.0,2837.5,12.21583228]
[1769386946228,0.88059175,2839.0,2837.4,0.90064952]
[1769386946229,0.88059175,2839.0,2837.6,12.23539089]
[1769386946433,1.62544704,2838.9,2837.7,1.24309581]
[1769386947002,1.71662594,2839.2,2837.9,12.21583228]
[1769386947230,0.92456207,2839.2,2837.9,12.21583228]
[1769386947437,12.73199751,2839.7,2837.9,12.21583228]
[1769386947799,12.73199751,2839.7,2838.1,12.21583228]
[1769386948000,12.73199751,2839.7,2838.2,1.30967343]
[1769386948001,13.52098238,2839.6,2838.2,1.30967343]
[1769386948239,13.4769621,2839.6,2838.2,1.30967343]
[1769386948442,11.85162283,2839.4,2838.2,1.30967343]
[1769386948610,0.04402493,2839.3,2838.2,1.30967343]
[1769386949177,11.89564776,2839.3,2837.7,1.22353909]
[1769386949467,11.85162283,2839.1,2837.3,12.21583228]
[1769386949616,11.85162283,2838.9,2837.4,13.11648133]
[1769386949823,11.85162283,2838.9,2837.4,13.09692013]
[1769386950045,0.88065379,2838.8,2837.5,12.235394]
[1769386950242,0.88065379,2838.8,2837.5,12.21583228]
[1769386950539,13.47711104,2838.7,2837.6,1.22158323]
[1769386950724,11.89565862,2838.6,2837.2,0.01956379]
[1769386950925,11.85162283,2838.6,2837.2,0.01956379]
[1769386951320,11.85162283,2838.6,2837.3,13.09693282]
[1769386951542,1.62548821,2838.7,2837.3,12.21583228]
[1769386951843,1.62548821,2838.7,2837.1,0.738]
[1769386951844,11.89565862,2838.6,2837.1,0.738]
[1769386952142,0.88074687,2838.5,2837.2,12.21583228]
[1769386952348,0.04403889,2838.4,2837.1,2.03338323]
[1769386952548,0.04403889,2838.4,2837.2,0.20333832]
[1769386952728,11.89566172,2838.4,2837.2,0.20333832]
[1769386953040,0.04404044,2838.3,2837.2,0.20533832]
[1769386953422,0.001,2838.4,2837.2,13.09513807]
[1769386953627,0.001,2838.4,2837.3,13.50192867]
[1769386953815,0.001,2838.4,2837.4,0.01956965]
[1769386954637,0.04503889,2838.4,2837.3,13.50192867]
[1769386954942,0.04503889,2838.4,2837.3,1.51285213]
[1769386955138,12.75707495,2838.4,2837.2,0.20533832]
[1769386955355,12.71303606,2838.4,2837.2,0.20533832]
[1769386955919,0.88178186,2838.4,2837.2,1.08648822]
[1769386956118,0.92582075,2838.4,2837.2,12.21398778]
[1769386956320,0.68188331,2838.3,2837.3,1.29519878]
[1769386957648,0.68188331,2838.3,2837.2,0.20533832]
[1769386957947,0.88083996,2838.2,2837.2,0.002]
[1769386958438,13.63691801,2838.2,2837.2,0.002]
[1769386958632,13.59287602,2838.2,2837.2,0.002]
[1769386959949,13.5929381,2838.0,2837.2,0.002]
[1769386960133,12.71203606,2837.8,2837.0,0.002]
[1769386960329,14.05703967,2837.7,2837.0,0.002]
[1769386960533,14.05703967,2837.7,2836.5,0.002]
[1769386961251,0.738,2837.6,2836.5,0.002]
[1769386961450,1.34500361,2837.7,2836.5,12.01067172]
[1769386961632,14.3309381,2838.0,2836.5,11.99107654]
[1769386961834,14.3309381,2838.0,2836.6,0.01958967]
[1769386962355,13.59300018,2837.8,2836.6,0.01958967]
[1769386962545,13.59300018,2837.8,2836.5,0.002]
[1769386963646,12.71203606,2837.6,2836.5,0.002]
[1769386963841,1.27560858,2837.5,2836.5,0.002]
[1769386964041,0.738,2837.7,2836.5,0.002]
[1769386964223,0.88102621,2837.6,2836.5,0.002]
[1769386965123,13.59306227,2837.6,2836.5,0.002]
[1769386965528,13.59306227,2837.6,2836.3,0.002]
[1769386965758,12.71203606,2837.4,2836.3,0.002]
[1769386965962,12.80737841,2837.3,2835.6,0.738]
[1769386966259,12.80737841,2837.3,2835.6,0.73700197]
[1769386966260,12.71203606,2836.9,2835.6,0.73700197]
[1769386966436,13.45003606,2836.9,2835.6,0.73700197]
[1769386966628,14.14516092,2836.8,2835.6,0.73700197]
[1769386967653,14.14516092,2836.8,2835.5,0.002]
[1769386968036,0.738,2836.7,2835.5,12.00970213]
[1769386968352,0.88133681,2836.6,2835.5,0.002]
[1769386969656,0.88118148,2837.1,2835.5,12.89137051]
[1769386969958,0.92524055,2837.1,2835.7,11.98907654]
[1769386970154,0.92524055,2837.1,2835.8,12.00769403]
[1769386970452,0.88113301,2837.3,2836.0,11.98907654]
[1769386970656,0.88113301,2837.3,2835.8,11.98907654]
[1769386970657,0.04405752,2837.2,2835.8,11.98907654]
[1769386970856,12.75609358,2837.2,2835.8,13.44032928]
[1769386971161,12.71203606,2837.2,2835.9,0.01861439]
[1769386971364,0.04405907,2837.1,2835.8,13.44032928]
[1769386971529,12.71203606,2837.2,2835.9,0.01861561]
[1769386971735,1.47717598,2837.1,2835.8,13.44032928]
[1769386972157,1.47717598,2837.1,2835.9,0.01861561]
[1769386972863,0.88121254,2837.0,2835.8,13.44032928]
[1769386973165,0.04406218,2836.9,2835.8,1.45125274]
[1769386973363,12.75609824,2836.9,2835.6,0.01862003]
[1769386973557,12.75609824,2836.9,2835.5,11.99107654]
[1769386973558,12.71203606,2836.9,2835.5,11.99107654]
[1769386973767,12.71203606,2836.9,2835.6,0.01862248]
[1769386974184,12.71203606,2836.9,2835.5,0.002]
[1769386974339,12.71203606,2836.7,2835.5,0.002]
[1769386974544,12.71203606,2836.5,2835.5,0.002]
[1769386975054,0.88139895,2836.4,2835.5,0.002]
[1769386975270,13.59343501,2836.4,2835.5,0.002]
[1769386976973,0.88139895,2836.4,2835.5,0.002]
[1769386977169,0.44069768,2836.3,2835.5,0.002]
[1769386977471,0.44069768,2836.3,2835.5,12.00970826]
[1769386977673,2.37,2836.6,2835.7,11.98907654]
[1769386977842,3.29541841,2836.6,2835.7,11.98907654]
[1769386978268,3.29541841,2836.6,2835.7,0.002]
[1769386978444,0.92541841,2836.6,2835.7,0.002]
[1769386978650,0.04406839,2836.5,2835.7,0.002]
[1769386978869,0.92541841,2836.6,2835.7,0.002]
[1769386979069,0.44506471,2836.5,2835.7,0.002]
[1769386979273,1.32643497,2836.5,2835.5,0.02062681]
[1769386979442,0.04406994,2836.4,2835.5,0.002]
[1769386979645,1.61935018,2836.6,2835.5,12.00970704]
[1769386979944,1.61935018,2836.6,2835.5,11.99107654]
[1769386980145,0.51445959,2836.5,2835.6,0.01862739]
[1769386980382,0.51445959,2836.5,2835.5,11.99107654]
[1769386980549,17.67093281,2837.1,2835.6,12.00770393]
[1769386980550,0.88124361,2836.9,2835.6,12.00770393]
[1769386980745,0.88124361,2836.9,2835.6,11.98907654]
[1769386980949,0.92530579,2836.9,2835.7,0.01862183]
[1769386981373,13.63734185,2836.9,2835.7,0.01862183]
[1769386981553,12.71203606,2836.7,2835.5,0.002]
[1769386981766,12.71203606,2836.5,2835.5,0.002]
[1769386981969,0.04406994,2836.4,2835.5,0.002]
[1769386983181,0.88143003,2836.3,2835.5,0.002]
[1769386983383,0.04407305,2836.2,2835.5,0.002]
[1769386985686,0.92553822,2836.2,2835.5,0.002]
[1769386986275,0.44512957,2836.1,2835.5,0.002]
[1769386986478,0.04407616,2836.0,2835.5,0.002]
[1769386987277,0.44512957,2836.1,2835.5,0.002]
[1769386987589,0.881447,2836.3,2835.5,0.002]
[1769386987590,0.738,2836.2,2835.5,0.002]
[1769386987794,0.92556678,2836.1,2835.5,0.002]
[1769386988294,13.0238716,2836.1,2835.3,0.002]
[1769386988493,12.979797,2836.1,2835.1,0.001]
[1769386988791,12.09830482,2835.9,2834.7,0.002]
[1769386988960,14.46830482,2835.9,2834.7,0.00101183]
[1769386989293,2.37,2835.9,2834.8,13.49903766]
[1769386989488,2.37,2835.9,2835.0,12.61716354]
[1769386989689,2.37,2835.9,2834.7,0.00101183]
[1769386989690,0.88161653,2835.7,2834.7,0.00101183]
[1769386989992,0.44520596,2835.6,2834.7,0.00101183]
[1769386990172,0.44520596,2835.6,2834.7,0.01966721]
[1769386990370,5.89625205,2835.9,2834.7,12.63683075]
[1769386990371,2.37,2835.9,2834.7,12.63683075]
[1769386990689,2.37,2835.9,2835.0,12.61916354]
[1769386990896,3.25155986,2835.9,2835.0,12.61916354]
[1769386991195,0.04407927,2835.8,2835.0,0.002]
[1769386991364,12.14238409,2835.8,2835.0,0.002]
[1769386991688,3.25155986,2835.9,2834.8,0.002]
[1769386991689,12.97995244,2835.6,2834.8,0.002]
[1769386992278,12.83630482,2835.5,2834.7,0.00101183]
[1769386992907,15.20630482,2835.5,2834.3,0.002]
[1769386993193,12.09830482,2835.4,2834.3,0.002]
[1769386993991,0.8817409,2835.3,2834.3,0.002]
[1769386994195,1.33463082,2835.2,2834.3,0.002]
[1769386994778,13.43293564,2835.2,2834.3,0.002]
[1769386995891,0.88180311,2835.1,2834.3,0.002]
[1769386996594,12.52793075,2835.0,2834.3,0.002]
[1769386996803,0.738,2834.9,2834.3,0.002]
[1769386996973,1.32659307,2834.8,2834.3,0.002]
[1769386997502,0.738,2835.0,2834.3,0.002]
[1769386997696,0.738,2835.3,2834.3,12.36428189]
[1769386997871,0.738,2835.3,2834.4,0.01866594]
[1769386998071,0.881772,2835.2,2834.3,12.36428189]
[1769386998374,0.738,2835.1,2834.3,0.002]
[1769386999300,13.26593075,2835.1,2834.3,0.002]
[1769386999480,1.41917914,2835.0,2834.3,0.002]
[1769386999799,1.46327085,2835.0,2834.3,0.002]
[1769387000409,1.62078407,2835.2,2834.3,0.002]
[1769387000594,1.62078407,2835.2,2834.3,0.02066782]
[1769387000798,0.739,2835.2,2834.3,0.02066782]
[1769387001195,12.52793075,2835.7,2834.3,12.36428189]
[1769387001196,3.65461884,2835.6,2834.3,12.36428189]
[1769387001501,0.78308393,2835.5,2834.4,12.38094415]
[1769387001701,0.44377028,2835.4,2834.5,0.0186616]
[1769387001874,0.44377028,2835.4,2834.4,12.36228189]
[1769387002205,0.88164762,2835.6,2834.4,12.36228189]
[1769387002401,0.04408393,2835.5,2834.4,12.36228189]
[1769387002605,0.88164762,2835.6,2834.4,12.36228189]
[1769387002781,1.62063644,2835.7,2834.5,12.36428189]
[1769387002985,1.62063644,2835.7,2834.6,0.01865725]
[1769387003186,1.62063644,2835.7,2834.6,13.70743508]
[1769387003485,1.62063644,2835.7,2834.6,13.68877783]
[1769387003669,0.88163644,2835.7,2834.7,0.01865538]
[1769387003875,0.04408238,2835.6,2834.6,13.68877783]
[1769387004274,0.88167871,2835.5,2834.6,13.68877783]
[1769387004514,1.3269074,2835.5,2834.6,13.68877783]
[1769387004811,0.44522869,2835.5,2834.6,13.68877783]
[1769387005477,0.04408549,2835.4,2834.6,13.68877783]
[1769387005673,0.04408549,2835.4,2834.6,1.32649594]
[1769387005906,0.04408549,2835.4,2834.5,0.002]
[1769387006204,0.92580794,2835.4,2834.5,0.002]
[1769387006721,13.45373869,2835.4,2834.5,0.002]
[1769387007005,13.4096532,2835.4,2834.5,0.002]
[1769387008001,0.04408704,2835.3,2834.5,0.002]
[1769387008204,1.34537402,2835.2,2834.5,0.002]
[1769387008407,0.92589326,2835.1,2834.5,0.002]
[1769387008814,0.04409015,2835.1,2834.5,0.002]
[1769387008973,0.739,2835.4,2834.5,12.36428189]
[1769387009281,0.78308549,2835.4,2834.5,12.36428189]
[1769387009479,0.78308549,2835.4,2834.5,0.002]
[1769387009480,0.44799937,2835.3,2834.5,0.002]
[1769387009680,0.0440886,2835.2,2834.5,0.002]
[1769387010487,0.88180311,2835.1,2834.5,0.002]
[1769387010679,0.04409171,2835.0,2834.5,0.002]
[1769387011382,1.32976375,2835.3,2834.5,0.002]
[1769387011578,1.45966945,2835.2,2834.5,0.002]
[1769387011788,0.44799937,2835.3,2834.5,12.36428189]
[1769387011983,2.81522869,2835.5,2834.5,12.36428189]
[1769387011984,2.37,2835.5,2834.6,12.38094405]
[1769387012288,0.04408549,2835.4,2834.6,12.36228189]
[1769387012592,0.04408549,2835.4,2834.5,0.002]
[1769387012593,0.92582306,2835.4,2834.5,0.002]
[1769387013323,0.04408549,2835.4,2834.5,0.002]
[1769387013813,2.37,2835.5,2834.5,11.81130228]
[1769387014001,0.44315221,2835.4,2834.5,11.81130228]
[1769387014918,0.001,2835.0,2834.5,11.81130228]
[1769387017206,0.001,2835.0,2834.5,0.002]
[1769387018086,0.001,2835.0,2834.3,0.002]
[1769387018315,0.04509171,2835.0,2834.3,0.002]
[1769387018511,13.92075583,2834.9,2834.1,0.002]
[1769387019088,0.88189643,2834.8,2834.1,0.002]
[1769387019602,0.92599125,2834.8,2834.1,0.002]
[1769387021428,1.33680432,2834.9,2834.1,0.002]
[1769387021721,1.62086877,2834.9,2834.1,0.002]
[1769387022500,0.04409482,2834.8,2834.1,0.002]
[1769387023203,0.88192754,2834.7,2834.1,0.002]
[1769387024399,0.78309482,2834.8,2834.1,0.002]
[1769387024602,0.001,2835.0,2834.1,0.002]
[1769387024799,0.88283782,2835.0,2834.1,1.18519801]
[1769387025000,0.04409326,2834.9,2834.1,1.18519801]
[1769387025201,0.04409326,2834.9,2834.1,0.002]
[1769387025724,0.92596101,2834.9,2834.1,0.002]
[1769387026317,0.92596101,2834.9,2833.9,11.80448113]
[1769387026519,0.04409326,2834.9,2833.9,11.80448113]
[1769387026732,0.92596159,2834.9,2833.9,11.80448113]
[1769387026912,0.92596159,2834.9,2834.3,0.002]
[1769387027113,0.001,2834.8,2834.3,0.002]
[1769387028109,0.001,2834.8,2833.7,0.739]